[Event "Mistrovství Čech mládeže 2023 - HD12"]
[Site "Harrachov, Czech Republic"]
[Date "2023.10.21"]
[Round "1.1"]
[White "Jeníková, Sabina"]
[Black "Honcharov, Makar"]
[Result "0-1"]
[TimeControl "90m + 30s"]
[WhiteElo "1145"]
[BlackElo "1872"]

1. d4 {[%clk 01:30:55]} {[%emt 00:00:04]} Nf6 {[%clk 01:30:58]} {[%emt
00:00:02]} 2. Bf4 {[%clk 01:30:40]} {[%emt 00:00:45]} g6 {[%clk 01:31:23]}
{[%emt 00:00:06]} 3. Nf3 {[%clk 01:30:25]} {[%emt 00:00:44]} Bg7 {[%emt
00:00:12]} 4. e3 {[%clk 01:29:56]} {[%emt 00:00:57]} d6 {[%clk 01:32:08]}
{[%emt 00:00:06]} 5. Bd3 {[%clk 01:29:35]} {[%emt 00:00:50]} Nbd7 {[%clk
01:32:33]} {[%emt 00:00:06]} 6. Nbd2 {[%clk 01:29:19]} {[%emt 00:00:45]} O-O
{[%clk 01:32:52]} {[%emt 00:00:11]} 7. c3 {[%clk 01:29:15]} {[%emt 00:00:34]}
c6 {[%clk 01:33:12]} {[%emt 00:00:10]} 8. h3 {[%clk 01:29:18]} {[%emt
00:00:26]} Nd5 {[%clk 01:33:29]} {[%emt 00:00:14]} 9. Bg3 {[%clk 01:28:57]}
{[%emt 00:00:50]} e5 {[%clk 01:33:45]} {[%emt 00:00:15]} 10. e4 {[%clk
01:25:21]} {[%emt 00:04:07]} Nf4 {[%clk 01:33:45]} {[%emt 00:00:29]} 11. Nc4
{[%clk 01:19:46]} {[%emt 00:06:05]} Qc7 {[%clk 01:31:15]} {[%emt 00:03:00]} 12.
O-O {[%clk 01:16:38]} {[%emt 00:03:38]} b5 {[%clk 01:30:39]} {[%emt 00:01:06]}
13. Ne3 {[%clk 01:16:04]} {[%emt 00:01:04]} Nxd3 {[%clk 01:30:49]} {[%emt
00:00:20]} 14. Qxd3 {[%clk 01:16:12]} {[%emt 00:00:22]} Rd8 {[%clk 01:28:59]}
{[%emt 00:02:20]} 15. d5 {[%clk 01:13:03]} {[%emt 00:03:39]} Nc5 {[%clk
01:16:42]} {[%emt 00:12:47]} 16. Qc2 {[%clk 01:11:45]} {[%emt 00:01:46]} Bb7
{[%clk 01:14:34]} {[%emt 00:02:40]} 17. Rfd1 {[%clk 01:09:14]} {[%emt
00:03:00]} Rac8 {[%clk 01:11:25]} {[%emt 00:03:39]} 18. b4 {[%clk 01:08:11]}
{[%emt 00:01:34]} Na4 {[%clk 01:11:24]} {[%emt 00:00:32]} 19. Qd2 {[%clk
01:06:42]} {[%emt 00:01:57]} cxd5 {[%clk 01:11:42]} {[%emt 00:00:14]} 20. exd5
{[%clk 01:06:24]} {[%emt 00:00:47]} Nxc3 {[%clk 01:08:34]} {[%emt 00:03:39]} 21.
Rdc1 {[%clk 01:04:04]} {[%emt 00:02:50]} e4 {[%clk 01:08:26]} {[%emt 00:00:38]}
22. Ng5 {[%clk 01:01:30]} {[%emt 00:03:03]} Re8 {[%clk 01:07:46]} {[%emt
00:01:10]} 23. h4 {[%clk 01:00:15]} {[%emt 00:01:45]} Qd7 {[%clk 01:05:16]}
{[%emt 00:03:01]} 24. Nf1 {[%clk 00:57:17]} {[%emt 00:03:24]} Nxd5 {[%clk
01:04:13]} {[%emt 00:01:36]} 25. Re1 {[%clk 00:56:52]} {[%emt 00:00:55]} Bc3
{[%clk 01:03:34]} {[%emt 00:01:10]} 26. Qd1 {[%clk 00:56:12]} {[%emt 00:01:10]}
Bxa1 {[%clk 01:02:16]} {[%emt 00:01:48]} 27. Qxa1 {[%clk 00:56:17]} {[%emt
00:00:24]} Nxb4 {[%clk 01:02:37]} {[%emt 00:00:09]} 28. Qb2 {[%clk 00:55:36]}
{[%emt 00:01:11]} Nd3 {[%clk 01:02:30]} {[%emt 00:00:38]} 29. Qb1 {[%clk
00:54:56]} {[%emt 00:01:07]} Nxe1 {[%clk 01:02:46]} {[%emt 00:00:16]} 30. Qxe1
{[%clk 00:55:12]} {[%emt 00:00:14]} Qc6 {[%clk 01:02:53]} {[%emt 00:00:23]} 31.
Bf4 {[%clk 00:55:03]} {[%emt 00:00:39]} e3 {[%clk 01:03:06]} {[%emt 00:00:18]}
32. Nxe3 {[%clk 00:54:41]} {[%emt 00:00:50]} Rxe3 {[%clk 01:02:39]} {[%emt
00:00:58]} 33. Qxe3 {[%clk 00:54:23]} {[%emt 00:00:49]} Qxg2# {[%clk 01:02:57]}
{[%emt 00:00:09]} 0-1

[Event "Mistrovství Čech mládeže 2023 - HD12"]
[Site "Harrachov, Czech Republic"]
[Date "2023.10.21"]
[Round "1.2"]
[White "Zrůst, Lukáš"]
[Black "Slonek, Richard"]
[Result "1-0"]
[TimeControl "90m + 30s"]
[WhiteElo "1685"]
[BlackElo "1128"]

1. c4 {[%clk 01:30:56]} {[%emt 00:00:02]} e5 {[%clk 01:28:31]} {[%emt
00:02:29]} 2. Nc3 {[%clk 01:31:15]} {[%emt 00:00:11]} Nf6 {[%clk 01:27:57]}
{[%emt 00:01:05]} 3. g3 {[%clk 01:31:21]} {[%emt 00:00:24]} Nc6 {[%clk
01:27:49]} {[%emt 00:00:38]} 4. Bg2 {[%clk 01:31:42]} {[%emt 00:00:09]} Bc5
{[%clk 01:27:29]} {[%emt 00:00:50]} 5. Nf3 {[%clk 01:31:46]} {[%emt 00:00:25]}
d6 {[%clk 01:27:23]} {[%emt 00:00:36]} 6. O-O {[%clk 01:31:37]} {[%emt
00:00:39]} O-O {[%clk 01:27:31]} {[%emt 00:00:23]} 7. a3 {[%clk 01:31:02]}
{[%emt 00:01:06]} Re8 {[%clk 01:26:23]} {[%emt 00:01:37]} 8. b4 {[%clk
01:30:58]} {[%emt 00:00:35]} Bb6 {[%clk 01:24:52]} {[%emt 00:01:59]} 9. d3
{[%clk 01:29:48]} {[%emt 00:01:41]} h6 {[%clk 01:24:00]} {[%emt 00:01:22]} 10.
Bb2 {[%clk 01:29:36]} {[%emt 00:00:42]} Bg4 {[%clk 01:23:23]} {[%emt 00:01:05]}
11. h3 {[%clk 01:29:46]} {[%emt 00:00:22]} Bxf3 {[%clk 01:22:26]} {[%emt
00:01:28]} 12. Bxf3 {[%clk 01:29:58]} {[%emt 00:00:17]} Qd7 {[%clk 01:22:01]}
{[%emt 00:00:55]} 13. Bg2 {[%clk 01:30:10]} {[%emt 00:00:18]} Nd4 {[%clk
01:21:27]} {[%emt 00:01:03]} 14. e3 {[%clk 01:29:34]} {[%emt 00:01:07]} Nc6
{[%clk 01:20:56]} {[%emt 00:00:59]} 15. Qc2 {[%clk 01:28:49]} {[%emt 00:01:17]}
Qf5 {[%clk 01:17:45]} {[%emt 00:03:41]} 16. Rad1 {[%clk 01:25:14]} {[%emt
00:04:04]} a5 {[%clk 01:13:23]} {[%emt 00:04:52]} 17. Qb3 {[%clk 01:20:30]}
{[%emt 00:05:15]} Qh5 {[%clk 01:08:57]} {[%emt 00:04:56]} 18. Na4 {[%clk
01:16:37]} {[%emt 00:04:24]} Nd7 {[%clk 01:03:46]} {[%emt 00:05:40]} 19. Nxb6
{[%clk 01:16:37]} {[%emt 00:00:30]} cxb6 {[%clk 01:03:35]} {[%emt 00:00:41]} 20.
d4 {[%clk 01:12:48]} {[%emt 00:04:18]} e4 {[%clk 01:00:05]} {[%emt 00:04:01]}
21. Kh2 {[%clk 01:09:02]} {[%emt 00:04:15]} Nf6 {[%clk 00:55:58]} {[%emt
00:04:38]} 22. h4 {[%clk 01:04:36]} {[%emt 00:04:56]} Ng4+ {[%clk 00:54:14]}
{[%emt 00:02:13]} 23. Kg1 {[%clk 01:04:27]} {[%emt 00:00:39]} Qf5 {[%clk
00:47:04]} {[%emt 00:07:39]} 24. b5 {[%clk 01:03:03]} {[%emt 00:01:56]} Ne7
{[%clk 00:47:14]} {[%emt 00:00:20]} 25. a4 {[%clk 01:00:48]} {[%emt 00:02:45]}
Rac8 {[%clk 00:45:12]} {[%emt 00:02:32]} 26. Ba3 {[%clk 00:57:18]} {[%emt
00:04:00]} Qh5 {[%clk 00:35:49]} {[%emt 00:09:52]} 27. f3 {[%clk 00:49:22]}
{[%emt 00:08:25]} exf3 {[%clk 00:33:34]} {[%emt 00:02:46]} 28. Rxf3 {[%clk
00:47:11]} {[%emt 00:02:42]} Nf5 {[%emt 00:03:02]} 29. e4 {[%clk 00:36:55]}
{[%emt 00:10:42]} Nfe3 {[%clk 00:27:04]} {[%emt 00:04:32]} 30. Rc1 {[%clk
00:33:26]} {[%emt 00:03:59]} Nxg2 {[%clk 00:26:09]} {[%emt 00:01:24]} 31. Kxg2
{[%clk 00:32:16]} {[%emt 00:01:40]} Rxe4 {[%clk 00:24:13]} {[%emt 00:02:27]} 32.
Qd3 {[%clk 00:27:57]} {[%emt 00:04:49]} Rce8 {[%clk 00:20:28]} {[%emt
00:04:14]} 33. Bxd6 {[%clk 00:21:42]} {[%emt 00:06:46]} Qg6 {[%clk 00:17:43]}
{[%emt 00:03:13]} 34. Bf4 {[%clk 00:20:24]} {[%emt 00:01:50]} Re2+ {[%clk
00:16:49]} {[%emt 00:01:22]} 35. Kg1 {[%clk 00:19:36]} {[%emt 00:01:18]} Qxd3
{[%clk 00:16:12]} {[%emt 00:01:08]} 36. Rxd3 {[%clk 00:19:57]} {[%emt
00:00:09]} Ra2 {[%clk 00:16:20]} {[%emt 00:00:22]} 37. Rd2 {[%clk 00:19:34]}
{[%emt 00:00:47]} Rxa4 {[%clk 00:16:34]} {[%emt 00:00:22]} 38. c5 {[%clk
00:19:30]} {[%emt 00:00:34]} bxc5 {[%clk 00:15:37]} {[%emt 00:01:27]} 39. dxc5
{[%clk 00:19:10]} {[%emt 00:00:51]} Rb4 {[%clk 00:14:56]} {[%emt 00:01:09]} 40.
c6 {[%clk 00:18:25]} {[%emt 00:01:17]} bxc6 {[%clk 00:05:19]} {[%emt 00:10:07]}
41. bxc6 {[%clk 00:18:38]} {[%emt 00:00:17]} Rc8 {[%clk 00:03:59]} {[%emt
00:01:50]} 42. c7 {[%clk 00:18:33]} {[%emt 00:00:36]} Re4 {[%clk 00:02:52]}
{[%emt 00:01:35]} 43. Rd8+ {[%clk 00:18:17]} {[%emt 00:00:47]} Re8 {[%clk
00:02:34]} {[%emt 00:00:48]} 44. Rxe8+ {[%clk 00:18:27]} {[%emt 00:00:20]} Rxe8
{[%clk 00:02:52]} {[%emt 00:00:11]} 45. c8=Q {[%clk 00:18:48]} {[%emt
00:00:09]} Rxc8 {[%clk 00:03:10]} {[%emt 00:00:12]} 46. Rxc8+ {[%clk 00:19:16]}
{[%emt 00:00:02]} Kh7 {[%clk 00:03:26]} {[%emt 00:00:14]} 47. Ra8 {[%clk
00:19:32]} {[%emt 00:00:14]} g5 {[%clk 00:03:16]} {[%emt 00:00:40]} 48. hxg5
{[%clk 00:19:42]} {[%emt 00:00:20]} hxg5 {[%clk 00:03:37]} {[%emt 00:00:09]} 49.
Bxg5 {[%clk 00:19:36]} {[%emt 00:00:36]} f6 {[%clk 00:03:47]} {[%emt 00:00:20]}
50. Bf4 {[%clk 00:19:43]} {[%emt 00:00:23]} Kg6 {[%clk 00:04:01]} {[%emt
00:00:17]} 51. Rxa5 {[%clk 00:19:56]} {[%emt 00:00:17]} Kf7 {[%clk 00:04:11]}
{[%emt 00:00:19]} 52. Rh5 {[%clk 00:19:44]} {[%emt 00:00:42]} Kg6 {[%clk
00:03:54]} {[%emt 00:00:46]} 53. Rh8 {[%clk 00:19:54]} {[%emt 00:00:21]} Kg7
{[%clk 00:03:23]} {[%emt 00:01:00]} 54. Rh4 {[%clk 00:20:01]} {[%emt 00:00:24]}
f5 {[%clk 00:03:40]} {[%emt 00:00:13]} 55. Kg2 {[%clk 00:20:04]} {[%emt
00:00:27]} Kg6 {[%clk 00:03:38]} {[%emt 00:00:32]} 56. Kf3 {[%clk 00:20:07]}
{[%emt 00:00:27]} Kf6 {[%clk 00:03:25]} {[%emt 00:00:43]} 57. Rh5 {[%clk
00:19:54]} {[%emt 00:00:41]} Kg6 {[%clk 00:03:44]} {[%emt 00:00:13]} 58. Rg5+
{[%clk 00:20:04]} {[%emt 00:00:20]} Kf6 {[%clk 00:03:56]} {[%emt 00:00:19]} 59.
Rxg4 {[%clk 00:20:25]} {[%emt 00:00:08]} fxg4+ {[%clk 00:04:09]} {[%emt
00:00:17]} 60. Kxg4 {[%clk 00:20:49]} {[%emt 00:00:06]} Kg6 {[%clk 00:04:34]}
{[%emt 00:00:06]} 61. Bg5 {[%clk 00:20:53]} {[%emt 00:00:25]} Kg7 {[%clk
00:04:48]} {[%emt 00:00:15]} 62. Kf5 {[%clk 00:21:09]} {[%emt 00:00:15]} Kf7
{[%clk 00:04:59]} {[%emt 00:00:20]} 63. g4 {[%clk 00:21:30]} {[%emt 00:00:10]}
Kg7 {[%clk 00:05:18]} {[%emt 00:00:10]} 64. Bf6+ {[%clk 00:21:51]} {[%emt
00:00:09]} Kf7 {[%clk 00:05:36]} {[%emt 00:00:11]} 65. g5 {[%clk 00:22:15]}
{[%emt 00:00:06]} Kg8 {[%clk 00:05:29]} {[%emt 00:00:37]} 66. Kg6 {[%clk
00:22:43]} {[%emt 00:00:03]} Kf8 {[%clk 00:05:48]} {[%emt 00:00:11]} 67. Kh7
{[%clk 00:23:03]} {[%emt 00:00:09]} Kf7 {[%clk 00:06:02]} {[%emt 00:00:16]} 68.
g6+ {[%clk 00:23:28]} {[%emt 00:00:06]} Kxf6 {[%clk 00:06:17]} {[%emt
00:00:15]} 69. g7 {[%clk 00:23:38]} {[%emt 00:00:19]} Kg5 {[%clk 00:06:20]}
{[%emt 00:00:27]} 70. g8=Q+ {[%clk 00:24:00]} {[%emt 00:00:08]} Kh5 {[%clk
00:06:36]} {[%emt 00:00:14]} 71. Qg2 {[%clk 00:24:04]} {[%emt 00:00:24]} Kh4
{[%clk 00:06:57]} {[%emt 00:00:12]} 72. Kg7 {[%clk 00:24:23]} {[%emt 00:00:10]}
Kh5 {[%clk 00:07:18]} {[%emt 00:00:10]} 73. Kf6 {[%clk 00:24:39]} {[%emt
00:00:13]} Kh4 {[%clk 00:07:34]} {[%emt 00:00:14]} 74. Kf5 {[%clk 00:25:02]}
{[%emt 00:00:07]} Kh5 {[%clk 00:07:54]} {[%emt 00:00:09]} 75. Qg5 {[%clk
00:25:06]} {[%emt 00:00:27]} 1-0

[Event "Mistrovství Čech mládeže 2023 - HD12"]
[Site "Harrachov, Czech Republic"]
[Date "2023.10.21"]
[Round "1.3"]
[White "Sengrová, Žofie"]
[Black "Kolář, Edvard"]
[Result "0-1"]
[TimeControl "90m + 30s"]
[WhiteElo "1124"]
[BlackElo "1473"]

1. e4 {[%clk 01:30:58]} {[%emt 00:00:02]} e6 {[%clk 01:30:26]} {[%emt
00:00:34]} 2. Bb5 {[%clk 01:30:49]} {[%emt 00:00:38]} a6 {[%clk 01:30:20]}
{[%emt 00:00:38]} 3. Ba4 {[%clk 01:30:48]} {[%emt 00:00:26]} Ne7 {[%clk
01:28:05]} {[%emt 00:02:48]} 4. Nc3 {[%clk 01:30:33]} {[%emt 00:00:33]} c5
{[%clk 01:28:10]} {[%emt 00:00:37]} 5. d3 {[%clk 01:25:45]} {[%emt 00:04:53]}
g6 {[%clk 01:26:56]} {[%emt 00:02:10]} 6. Bg5 {[%clk 01:23:55]} {[%emt
00:02:13]} Bg7 {[%clk 01:25:40]} {[%emt 00:01:53]} 7. Nge2 {[%clk 01:21:48]}
{[%emt 00:02:35]} O-O {[%clk 01:23:45]} {[%emt 00:02:27]} 8. Bxe7 {[%clk
01:20:26]} {[%emt 00:00:57]} Qxe7 {[%clk 01:24:10]} {[%emt 00:01:00]} 9. O-O
{[%clk 01:20:15]} {[%emt 00:00:39]} d6 {[%clk 01:21:58]} {[%emt 00:02:45]} 10.
h3 {[%clk 01:20:08]} {[%emt 00:00:34]} b5 {[%clk 01:20:35]} {[%emt 00:01:56]}
11. Bb3 {[%clk 01:19:18]} {[%emt 00:01:19]} Bd7 {[%clk 01:19:38]} {[%emt
00:01:27]} 12. d4 {[%clk 01:17:47]} {[%emt 00:01:59]} c4 {[%clk 01:19:00]}
{[%emt 00:01:11]} 13. Bxc4 {[%clk 01:16:59]} {[%emt 00:01:17]} bxc4 {[%clk
01:19:21]} {[%emt 00:00:10]} 14. d5 {[%clk 01:17:10]} {[%emt 00:00:16]} e5
{[%clk 01:17:33]} {[%emt 00:02:21]} 15. b3 {[%clk 01:15:43]} {[%emt 00:01:55]}
cxb3 {[%clk 01:16:49]} {[%emt 00:01:15]} 16. axb3 {[%clk 01:14:41]} {[%emt
00:01:32]} f5 {[%clk 01:16:06]} {[%emt 00:01:12]} 17. Re1 {[%clk 01:13:52]}
{[%emt 00:01:18]} fxe4 {[%clk 01:16:05]} {[%emt 00:00:33]} 18. Nxe4 {[%clk
01:13:53]} {[%emt 00:00:29]} Bf5 {[%clk 01:16:05]} {[%emt 00:00:29]} 19. Qd3
{[%clk 01:13:05]} {[%emt 00:01:16]} Nd7 {[%clk 01:14:36]} {[%emt 00:02:01]} 20.
f3 {[%clk 01:12:37]} {[%emt 00:00:48]} Nc5 {[%clk 01:14:27]} {[%emt 00:00:49]}
21. Qc4 {[%clk 01:11:59]} {[%emt 00:01:04]} Nxe4 {[%clk 01:12:33]} {[%emt
00:02:28]} 22. fxe4 {[%clk 01:12:11]} {[%emt 00:00:18]} Bd7 {[%clk 01:11:44]}
{[%emt 00:01:11]} 23. Rxa6 {[%clk 01:12:20]} {[%emt 00:00:29]} Rxa6 {[%clk
01:12:02]} {[%emt 00:00:14]} 24. Qxa6 {[%clk 01:12:41]} {[%emt 00:00:08]} Qg5
{[%clk 01:12:03]} {[%emt 00:00:24]} 25. Rf1 {[%clk 01:11:46]} {[%emt 00:01:29]}
Qe3+ {[%clk 01:11:53]} {[%emt 00:01:00]} 26. Kh2 {[%clk 01:11:09]} {[%emt
00:00:46]} Rxf1 {[%clk 01:11:34]} {[%emt 00:00:51]} 27. b4 {[%clk 01:11:13]}
{[%emt 00:00:26]} Bxh3 {[%clk 01:11:53]} {[%emt 00:00:11]} 28. gxh3 {[%clk
01:11:26]} {[%emt 00:00:16]} Qf2# {[%clk 01:12:18]} {[%emt 00:00:05]} 0-1

[Event "Mistrovství Čech mládeže 2023 - HD12"]
[Site "Harrachov, Czech Republic"]
[Date "2023.10.21"]
[Round "1.4"]
[White "Koupil, Štěpán"]
[Black "Koutecká, Magdalena"]
[Result "0-1"]
[TimeControl "90m + 30s"]
[WhiteElo "1467"]
[BlackElo "1123"]

1. e4 {[%clk 01:30:49]} {[%emt 00:00:10]} e5 {[%clk 01:30:47]} {[%emt
00:00:14]} 2. Nf3 {[%clk 01:30:55]} {[%emt 00:00:24]} Nc6 {[%clk 01:31:10]}
{[%emt 00:00:07]} 3. d4 {[%clk 01:31:18]} {[%emt 00:00:07]} exd4 {[%clk
01:31:32]} {[%emt 00:00:07]} 4. Nxd4 {[%clk 01:31:38]} {[%emt 00:00:10]} Bc5
{[%clk 01:31:35]} {[%emt 00:00:27]} 5. Be3 {[%clk 01:31:52]} {[%emt 00:00:17]}
Bb6 {[%clk 01:31:44]} {[%emt 00:00:20]} 6. Bc4 {[%clk 01:30:22]} {[%emt
00:02:00]} Nf6 {[%clk 01:29:17]} {[%emt 00:02:57]} 7. Nc3 {[%clk 01:29:00]}
{[%emt 00:01:53]} d6 {[%clk 01:27:21]} {[%emt 00:02:26]} 8. O-O {[%clk
01:26:50]} {[%emt 00:02:40]} O-O {[%clk 01:25:54]} {[%emt 00:01:56]} 9. Re1
{[%clk 01:20:35]} {[%emt 00:06:46]} Bg4 {[%clk 01:22:13]} {[%emt 00:04:09]} 10.
f3 {[%clk 01:20:26]} {[%emt 00:00:40]} Bh5 {[%clk 01:20:46]} {[%emt 00:01:51]}
11. Qd2 {[%clk 01:17:19]} {[%emt 00:03:43]} Re8 {[%clk 01:13:31]} {[%emt
00:07:45]} 12. Nd5 {[%clk 01:13:34]} {[%emt 00:04:15]} Nxd5 {[%clk 01:08:15]}
{[%emt 00:05:46]} 13. Bxd5 {[%clk 01:09:56]} {[%emt 00:04:08]} Nxd4 {[%clk
00:59:06]} {[%emt 00:09:39]} 14. Bxd4 {[%clk 01:10:17]} {[%emt 00:00:10]} c6
{[%clk 00:57:13]} {[%emt 00:02:21]} 15. Bb3 {[%clk 01:08:24]} {[%emt 00:02:24]}
d5 {[%clk 00:53:18]} {[%emt 00:04:25]} 16. exd5 {[%clk 01:07:25]} {[%emt
00:01:29]} Rxe1+ {[%clk 00:52:15]} {[%emt 00:01:32]} 17. Rxe1 {[%clk 01:07:33]}
{[%emt 00:00:23]} cxd5 {[%clk 00:51:51]} {[%emt 00:00:53]} 18. Kh1 {[%clk
01:07:13]} {[%emt 00:00:50]} Bg6 {[%clk 00:41:40]} {[%emt 00:10:41]} 19. Bxb6
{[%clk 01:04:29]} {[%emt 00:03:15]} Qxb6 {[%clk 00:41:31]} {[%emt 00:00:39]} 20.
Qxd5 {[%clk 01:03:33]} {[%emt 00:01:26]} h6 {[%clk 00:37:15]} {[%emt 00:04:46]}
21. h3 {[%clk 01:02:49]} {[%emt 00:01:14]} Kh7 {[%clk 00:35:32]} {[%emt
00:02:10]} 22. Rd1 {[%clk 08:29:25]} {[%emt 00:03:58]} Re8 {[%clk 00:27:53]}
{[%emt 00:08:04]} 23. Qc4 {[%clk 00:56:11]} {[%emt 00:03:47]} Qf2 {[%clk
00:25:15]} {[%emt 00:03:06]} 24. Qd4 {[%clk 00:53:48]} {[%emt 00:02:56]} Qg3
{[%clk 00:21:27]} {[%emt 00:04:18]} 25. Qg4 {[%clk 00:42:06]} {[%emt 00:12:09]}
Qf2 {[%clk 00:16:44]} {[%emt 00:02:01]} 26. Qd4 {[%clk 00:37:15]} {[%emt
00:05:24]} Qg3 {[%clk 00:17:56]} {[%emt 00:02:29]} 27. Qd6 {[%clk 00:37:19]}
{[%emt 00:00:27]} Re1+ {[%clk 00:17:21]} {[%emt 00:01:05]} 28. Rxe1 {[%clk
00:37:28]} {[%emt 00:00:21]} Qxd6 {[%clk 00:17:34]} {[%emt 00:00:17]} 0-1

[Event "Mistrovství Čech mládeže 2023 - HD12"]
[Site "Harrachov, Czech Republic"]
[Date "2023.10.21"]
[Round "1.5"]
[White "Vaníčková, Natálie"]
[Black "Artamonov, Mikhail"]
[Result "0-1"]
[TimeControl "90m + 30s"]
[WhiteElo "1122"]
[BlackElo "1458"]

1. d4 {[%clk 01:30:06]} {[%emt 00:00:27]} Nf6 {[%clk 01:30:41]} {[%emt
00:00:19]} 2. c4 {[%clk 01:29:09]} {[%emt 00:01:27]} d6 {[%clk 01:30:02]}
{[%emt 00:01:09]} 3. Nf3 {[%clk 01:27:24]} {[%emt 00:02:15]} g6 {[%clk
01:29:06]} {[%emt 00:01:26]} 4. Nc3 {[%clk 01:26:44]} {[%emt 00:01:10]} Bg7
{[%clk 01:28:44]} {[%emt 00:00:52]} 5. e4 {[%clk 01:25:35]} {[%emt 00:01:39]}
O-O {[%clk 01:27:12]} {[%emt 00:02:02]} 6. Be2 {[%clk 01:24:51]} {[%emt
00:01:13]} Nbd7 {[%clk 01:26:38]} {[%emt 00:01:05]} 7. O-O {[%clk 01:24:05]}
{[%emt 00:01:15]} e5 {[%clk 01:25:55]} {[%emt 00:01:15]} 8. d5 {[%clk
01:21:49]} {[%emt 00:02:46]} Nc5 {[%clk 01:25:05]} {[%emt 00:01:20]} 9. Qc2
{[%clk 01:19:15]} {[%emt 00:03:03]} a5 {[%clk 01:23:46]} {[%emt 00:01:49]} 10.
Be3 {[%clk 01:11:34]} {[%emt 00:08:10]} Nfd7 {[%clk 01:22:09]} {[%emt
00:02:07]} 11. Nd2 {[%clk 01:05:20]} {[%emt 00:06:44]} f5 {[%clk 01:18:37]}
{[%emt 00:04:03]} 12. f4 {[%clk 00:57:44]} {[%emt 00:08:03]} exf4 {[%clk
01:16:31]} {[%emt 00:02:39]} 13. Bxf4 {[%clk 00:54:50]} {[%emt 00:03:23]} g5
{[%clk 01:15:35]} {[%emt 00:01:27]} 14. Be3 {[%clk 00:53:38]} {[%emt 00:01:42]}
f4 {[%clk 01:15:58]} {[%emt 00:00:06]} 15. Bxc5 {[%clk 00:53:22]} {[%emt
00:00:46]} Nxc5 {[%clk 01:16:21]} {[%emt 00:00:08]} 16. a3 {[%clk 00:45:01]}
{[%emt 00:08:51]} a4 {[%clk 01:15:13]} {[%emt 00:01:38]} 17. b3 {[%clk
00:40:43]} {[%emt 00:04:47]} axb3 {[%clk 01:14:45]} {[%emt 00:00:59]} 18. Nxb3
{[%clk 00:39:24]} {[%emt 00:01:49]} Na4 {[%clk 01:14:46]} {[%emt 00:00:29]} 19.
Rfd1 {[%clk 00:38:00]} {[%emt 00:01:53]} Nxc3 {[%clk 01:14:29]} {[%emt
00:00:48]} 20. Rd3 {[%clk 00:29:49]} {[%emt 00:08:39]} Nxe2+ {[%clk 01:14:50]}
{[%emt 00:00:11]} 21. Qxe2 {[%clk 00:28:00]} {[%emt 00:02:19]} Bxa1 {[%clk
01:14:51]} 0-1